[Event "44th Chess Olympiad Women 2022"]
[Site "Chennai"]
[Date "2022.08.05"]
[Round "7.11"]
[White "Narva, Triin"]
[Black "Mrvova, Alena"]
[Result "1/2-1/2"]
[WhiteElo "2066"]
[BlackElo "2165"]
[Annotator "TA"]
[PlyCount "135"]
[EventDate "2022.??.??"]
[TimeControl "60"]

{[%evp 9,135,-1,24,-20,-10,-21,-15,-18,-8,-8,31,0,26,10,16,-5,0,-22,10,15,50,
46,146,200,215,212,246,242,255,264,262,241,257,223,214,202,208,203,206,210,364,
255,250,91,85,0,0,0,74,0,0,0,0,0,0,0,0,0,0,-9,-18,-205,-196,-198,0,-250,-202,
-205,-167,-156,-164,-435,-425,-420,-245,-273,-83,-81,-82,-80,-80,-161,-160,
-146,-83,-83,-83,-84,-83,-83,-79,-101,-68,-82,-86,-87,-79,-91,-79,-93,-91,-92,
-79,-79,-79,-79,-77,-87,0,-77,-78,-79,-64,-70,-54,-54,-54,-61,-62,-64,-51,-50,
-14,-14,-14,-14,-8,-8]} 1. e4 {[%emt 0:00:02]} c5 {[%emt 0:00:14]} 2. Nc3 {
[%emt 0:00:20]} Nc6 {[%emt 0:00:32]} 3. Bb5 {[%emt 0:00:16]} g6 {[%emt 0:00:34]
} 4. f4 {[%emt 0:04:00]} Bg7 {[%emt 0:02:11]} 5. Nf3 {[%emt 0:02:42]} Nh6 {
[%emt 0:03:45]} 6. a4 {[%emt 0:13:53] B23: Closed Sicilian: Lines without g3.}
(6. Bxc6 $5 bxc6 7. d3 $11) 6... O-O {[%emt 0:02:48]} 7. d3 {[%emt 0:03:21]}
Nd4 {[%emt 0:00:49]} 8. Bc4 {[%emt 0:11:34]} e6 {[%emt 0:04:15]} 9. O-O {
[%emt 0:06:10]} f5 {[%emt 0:06:54]} 10. h3 {[%emt 0:11:27]} Kh8 {[%emt 0:01:02]
} 11. Be3 {[%emt 0:04:27]} d6 {[%emt 0:03:37] [#]} 12. Rb1 $146 {[%emt 0:05:47]
} ({Predecessor:} 12. Qd2 Nf7 13. Rae1 Nxf3+ 14. Rxf3 Qb6 15. Bf2 Nd8 16. exf5
gxf5 17. Rg3 Bf6 18. d4 cxd4 {0-1 (33) Krupa,M (2220)-Dworakowska,J (2395)
Warsaw 2004}) 12... a6 {[%emt 0:02:43]} 13. Ng5 {[%emt 0:08:36]} Rb8 {[%emt 0:
00:00]} 14. b4 {[%emt 0:12:50][%cal Yb2b4,Yb4b5]} Nc6 {[%emt 0:21:12]} 15. b5 {
[%emt 0:02:10]} Ne7 {[%emt 0:07:21]} (15... axb5 $14 16. Nxb5 (16. axb5 Nd4 $11
) 16... Qe7) 16. Qe1 $16 {[%emt 0:05:29] White is much more active.} d5 {
[%emt 0:02:48]} 17. exd5 {[%emt 0:00:17]} exd5 {[%emt 0:00:04]} 18. Bxc5 {
[%emt 0:01:24]} dxc4 {[%emt 0:01:08]} 19. Qxe7 {[%emt 0:00:57][%cal Yb5a6]} (
19. Bxe7 $6 Qd4+ 20. Rf2 Re8 $16) 19... cxd3 {[%emt 0:09:34] [#]} 20. cxd3 {
[%emt 0:03:28][%cal Yb5a6]} b6 {[%emt 0:09:02] [#]} 21. bxa6 $1 {[%emt 0:00:52]
} Bxa6 {[%emt 0:00:54]} 22. Qxd8 $1 {[%emt 0:00:39] Chess con chili.} (22. Ne6
Qxe7 23. Bxe7 Rfe8 $11) 22... Rfxd8 {[%emt 0:00:19]} 23. Rxb6 {[%emt 0:00:37]}
Bxd3 {[%emt 0:03:45]} 24. Rd1 {[%emt 0:00:38]} Rbc8 $2 {[%emt 0:02:24]} (24...
Bc4 {keeps fighting.}) 25. Ne6 {[%emt 0:00:30]} Rxc5 {[%emt 0:01:05]} 26. Nxd8
$2 {[%emt 0:00:25]} (26. Nb5 $18 {and White stays clearly on top.} Rcc8 27.
Nxd8 Rxd8 28. a5) 26... Rxc3 {[%emt 0:00:09]} (26... Bd4+ $2 27. Kh2 Rxc3 28.
Rd6 $18) 27. Rb8 {[%emt 0:00:33]} (27. Kh1 $16) 27... Bd4+ $11 {[%emt 0:00:59]}
28. Kh1 {[%emt 0:00:15]} Ng8 {[%emt 0:00:09]} (28... Ba7 $11 29. Rb7 (29. Ra8
Bf2 $11) 29... Bf2) 29. Ne6 {[%emt 0:00:18]} (29. Rb7 $1 $16 Be4 30. Rxd4 Bxb7
31. Nxb7) 29... Bf6 {[%emt 0:02:13]} 30. Rf8 {[%emt 0:00:53]} Bc4 {[%emt 0:00:
00]} 31. Ng5 {[%emt 0:00:37]} h6 {[%emt 0:00:55]} 32. Nf3 {[%emt 0:00:25]} Bb3
{[%emt 0:02:06][%csl Ya4,Yd1] A strong pair of Bishops.} 33. Rd7 {[%emt 0:00:
00]} Bxa4 {[%emt 0:02:27]} 34. Ra7 {[%emt 0:00:34] aiming for Rff7.} Bb3 {
[%emt 0:01:13] Against Rff7} 35. Ra6 $2 {[%emt 0:00:36] [#]} (35. Ne5 $11 Bxe5
36. fxe5) 35... Kg7 $1 $19 {[%emt 0:00:43]} 36. Re8 {[%emt 0:00:30]} Bf7 $2 {
[%emt 0:01:10]} (36... Rc7 $19 {Hoping for ...Bc4.} 37. Rea8 Ne7) 37. Rb8 $2 {
[%emt 0:00:16]} (37. Ra7 $11 {and White has nothing to worry.} Ne7 38. Rexe7
Bxe7 39. Rxe7) 37... Rc7 {[%emt 0:00:19]} 38. Rbb6 {[%emt 0:00:37]} g5 {
[%emt 0:00:22]} 39. fxg5 {[%emt 0:00:34]} hxg5 {[%emt 0:00:06]} 40. Ra5 $2 {
[%emt 0:00:27]} (40. Rc6 Re7 41. Ra5) 40... Rc1+ {[%emt 0:00:32]} 41. Kh2 {
[%emt 0:30:22]} g4 {[%emt 0:02:47]} (41... Bd8 $142 42. Rbb5 Bc7+ 43. Ne5 Ne7)
42. hxg4 {[%emt 0:00:00]} fxg4 {[%emt 0:00:57]} (42... Bd8 $19 {is more deadly.
} 43. Rba6 Bc7+ 44. g3 Bxa5 45. Rxa5 Nf6 46. Rxf5 Nxg4+ 47. Kh3 Ne3) 43. Ne5
$17 {[%emt 0:00:00]} Bd8 {[%emt 0:01:56]} 44. Rb7 {[%emt 0:00:00]} Bc7 {
[%emt 0:03:48]} ({But not} 44... Bxa5 $6 45. Rxf7+ Kh6 46. Nxg4+ Kg6 47. Ne5+
Kg5 48. Rg7+ Kf5 49. Rxg8 $15) 45. g3 {[%emt 0:00:00]} (45. Rxc7 $17 Rxc7 46.
Nxg4) 45... Rc2+ {[%emt 0:00:08]} ({Weaker is} 45... Bxa5 46. Rxf7+ Kh6 47.
Nxg4+ Kg5 48. Rg7+ Kf5 49. Rxg8 $11) 46. Kg1 {[%emt 0:00:00] [#]} Nh6 {[%emt 0:
00:00]} ({And not} 46... Bxa5 47. Rxf7+ Kh6 48. Nxg4+ Kg6 49. Ne5+ Kg5 50. Rg7+
Kf5 51. Rxg8 $15) ({Better is} 46... Nf6 $1 47. Rba7 Kf8 48. Ra8+ Ke7) 47. Rxc7
{[%emt 0:03:12]} Rxc7 {[%emt 0:00:09]} 48. Nxg4 {[%emt 0:00:22]} Rc1+ {[%emt 0:
00:00]} 49. Kg2 {[%emt 0:00:06]} Rc2+ {[%emt 0:00:49]} 50. Nf2 {[%emt 0:01:04]}
Kf6 {[%emt 0:01:24]} 51. Ra6+ {[%emt 0:00:27]} Be6 {[%emt 0:00:09] ...Ng4 is
the strong threat.} 52. Kf3 {[%emt 0:00:27] Prevents Ng4.} Nf5 {[%emt 0:01:34]}
53. g4 {[%emt 0:00:37]} Nd4+ {[%emt 0:01:47]} 54. Ke3 {[%emt 0:00:28]} Nc6 {
[%emt 0:00:30]} 55. Ra3 {[%emt 0:00:33]} Bc4 {[%emt 0:01:07]} 56. Ne4+ {
[%emt 0:00:22]} Ke5 {[%emt 0:00:10] And now ...Re2+ would win.} 57. Nd2 {
[%emt 0:00:30]} Bb5 {[%emt 0:01:52]} 58. Rb3 {[%emt 0:00:27]} Ba4 {[%emt 0:00:
00]} (58... Ba6 $17 59. Ra3 Nb4 60. Nf3+ Kd6) 59. Nf3+ {[%emt 0:00:38]} (59.
Ra3 $1 $11) 59... Kf6 {[%emt 0:02:22]} 60. Rd3 {[%emt 0:00:31]} Rg2 {[%emt 0:
00:00]} 61. Kf4 {[%emt 0:00:24]} Ne7 {[%emt 0:02:02]} 62. Rd6+ {[%emt 0:00:27]}
Kg7 {[%emt 0:00:07]} 63. Nh4 {[%emt 0:00:38]} Rf2+ {[%emt 0:00:59]} 64. Kg5 {
[%emt 0:00:28]} Kf7 {[%emt 0:01:21]} 65. Rd4 {[%emt 0:00:28]} Bc2 {[%emt 0:00:
00]} 66. Rf4+ {[%emt 0:00:34] The position is equal.} Rxf4 {[%emt 0:00:05]} 67.
Kxf4 {[%emt 0:00:03]} Ng6+ {[%emt 0:00:04]} 68. Nxg6 {[%emt 0:00:05] Never
resign too early! Weighted Error Value: White=0.33/Black=0.31} 1/2-1/2

[Event "44th Chess Olympiad Women 2022"]
[Site "Chennai"]
[Date "2022.08.05"]
[Round "7.11"]
[White "Olde, Margareth"]
[Black "Hagarova, Zuzana"]
[Result "0-1"]
[WhiteElo "2235"]
[BlackElo "2293"]
[Annotator "RC"]
[PlyCount "80"]
[EventDate "2022.??.??"]
[TimeControl "60"]

1. d4 {[%emt 0:00:03]} Nf6 {[%emt 0:00:12]} 2. c4 {[%emt 0:00:06]} g6 {[%emt 0:
00:00]} 3. Nc3 {[%emt 0:00:07]} Bg7 {[%emt 0:00:07]} 4. e4 {[%emt 0:00:05]} d6
{[%emt 0:00:11]} 5. Be2 {[%emt 0:00:16]} O-O {[%emt 0:00:38]} 6. Be3 {[%emt 0:
00:00]} c5 {[%emt 0:01:09]} 7. d5 {[%emt 0:00:21]} e6 {[%emt 0:01:25]} 8. Nf3 {
[%emt 0:00:07]} exd5 {[%emt 0:01:27]} 9. cxd5 {[%emt 0:00:09]} Bg4 {[%emt 0:00:
00]} 10. Nd2 {[%emt 0:12:44]} Bxe2 {[%emt 0:00:57]} 11. Qxe2 {[%emt 0:00:08]}
Re8 {[%emt 0:01:18]} 12. O-O {[%emt 0:01:47]} Nbd7 {[%emt 0:01:28]} 13. Bg5 {
[%emt 0:04:00]} a6 {[%emt 0:53:09]} 14. a4 {[%emt 0:02:06]} Rc8 {[%emt 0:01:04]
} 15. Kh1 {[%emt 0:12:42]} Qc7 {[%emt 0:01:15]} 16. Nc4 {[%emt 0:08:19]} Ne5 {
[%emt 0:02:53]} 17. Nxe5 {[%emt 0:05:34]} Rxe5 {[%emt 0:00:24]} 18. f4 {
[%emt 0:02:21]} Ree8 {[%emt 0:05:41]} 19. e5 {[%emt 0:15:15]} dxe5 {[%emt 0:00:
00]} 20. fxe5 {[%emt 0:00:06]} Rxe5 {[%emt 0:01:19]} 21. Bf4 {[%emt 0:05:04]}
Rxe2 {[%emt 0:02:37]} 22. Bxc7 {[%emt 0:01:00]} Rxb2 {[%emt 0:00:53]} 23. d6 {
[%emt 0:05:22]} Nd7 {[%emt 0:03:40]} 24. Nd5 {[%emt 0:01:56]} Re8 {[%emt 0:00:
00]} 25. Ne7+ {[%emt 0:02:50]} Kf8 {[%emt 0:00:23]} 26. Rab1 {[%emt 0:06:43]}
c4 {[%emt 0:01:41]} 27. Rxb2 {[%emt 0:02:01]} Bxb2 {[%emt 0:00:06]} 28. Rf2 {
[%emt 0:01:45]} Bf6 {[%emt 0:01:59]} 29. a5 {[%emt 0:02:36]} c3 {[%emt 0:01:33]
} 30. g3 {[%emt 0:02:15]} Bd4 {[%emt 0:00:36]} 31. Rc2 {[%emt 0:00:31]} f6 {
[%emt 0:00:31]} 32. Kg2 {[%emt 0:03:39]} Kf7 {[%emt 0:00:17]} 33. Kf3 {[%emt 0:
00:00]} f5 {[%emt 0:00:11]} 34. Ke2 {[%emt 0:01:46]} Be5 {[%emt 0:00:50]} 35.
Nd5 {[%emt 0:02:35]} Bxd6+ {[%emt 0:00:17]} 36. Kd1 {[%emt 0:00:31]} Re5 {
[%emt 0:00:37]} 37. Nxc3 {[%emt 0:00:29]} Bxc7 {[%emt 0:00:09]} 38. Rb2 {
[%emt 0:00:09]} Bxa5 {[%emt 0:00:54]} 39. Rxb7 {[%emt 0:00:03]} Bxc3 {[%emt 0:
00:00]} 40. Rxd7+ {[%emt 0:00:04]} Re7 {[%emt 0:00:08]} 0-1

[Event "44th Chess Olympiad Women 2022"]
[Site "Chennai"]
[Date "2022.08.05"]
[Round "7.11"]
[White "Sucikova, Svetlana"]
[Black "Sinitsina, Anastassia"]
[Result "0-1"]
[WhiteElo "2188"]
[BlackElo "2175"]
[Annotator "NA RC"]
[PlyCount "100"]
[EventDate "2022.??.??"]
[TimeControl "60"]

1. Nf3 {[%emt 0:00:47]} Nf6 {[%emt 0:00:08]} 2. g3 {[%emt 0:00:42]} g6 {
[%emt 0:00:19]} 3. Bg2 {[%emt 0:01:01]} Bg7 {[%emt 0:00:08]} 4. O-O {[%emt 0:
00:00]} O-O {[%emt 0:00:12]} 5. c4 {[%emt 0:00:48]} d5 {[%emt 0:00:29]} 6. cxd5
{[%emt 0:01:41]} Nxd5 {[%emt 0:00:08]} 7. d4 {[%emt 0:00:31]} Nb6 {[%emt 0:00:
00]} 8. b3 {[%emt 0:10:50]} c5 {[%emt 0:04:15]} 9. Bb2 {[%emt 0:23:20]} Nc6 {
[%emt 0:03:37]} 10. Na3 {[%emt 0:02:53]} a6 {[%emt 0:08:40]} 11. Nc2 {[%emt 0:
00:00]} Bf5 {[%emt 0:02:31]} 12. e3 {[%emt 0:03:20]} Rc8 {[%emt 0:04:50]} 13.
Rc1 {[%emt 0:01:55]} Be4 {[%emt 0:05:43]} 14. Ba3 {[%emt 0:08:42]} c4 {[%emt 0:
00:00]} 15. Nb4 {[%emt 0:02:44]} Nxb4 {[%emt 0:01:36]} 16. Bxb4 {[%emt 0:00:09]
} Nd5 {[%emt 0:01:37]} 17. Qd2 {[%emt 0:07:07]} cxb3 {[%emt 0:04:31]} 18. Rxc8
{[%emt 0:01:44]} Qxc8 {[%emt 0:00:06]} 19. axb3 {[%emt 0:00:43]} Qc7 {[%emt 0:
00:00]} 20. Bc5 {[%emt 0:02:30]} Rc8 {[%emt 0:02:54]} 21. Rc1 {[%emt 0:03:23]}
b6 {[%emt 0:02:34]} 22. Ba3 {[%emt 0:00:10]} Qb7 {[%emt 0:00:12]} 23. Rxc8+ {
[%emt 0:01:33]} Qxc8 {[%emt 0:00:04]} 24. Ne1 {[%emt 0:02:24]} Bxg2 {[%emt 0:
00:00]} 25. Nxg2 {[%emt 0:02:59]} e6 {[%emt 0:01:44]} 26. Bb2 {[%emt 0:01:05]}
Qc6 {[%emt 0:04:05]} 27. e4 {[%emt 0:01:59]} Nc7 {[%emt 0:00:44]} 28. f3 {
[%emt 0:01:51]} f5 {[%emt 0:03:34]} 29. exf5 {[%emt 0:02:38]} exf5 {[%emt 0:00:
00]} 30. Kf2 {[%emt 0:00:25]} Nd5 {[%emt 0:01:02]} 31. Qe2 {[%emt 0:01:00]} b5
{[%emt 0:00:25]} 32. Ne1 {[%emt 0:01:15]} Nb4 {[%emt 0:12:17]} 33. Nd3 {
[%emt 0:01:41]} Nxd3+ {[%emt 0:00:34]} 34. Qxd3 {[%emt 0:00:08]} Qd5 {[%emt 0:
00:00]} 35. Qc3 {[%emt 0:00:27]} h5 {[%emt 0:00:40]} 36. Ke2 {[%emt 0:02:07]}
Kh7 {[%emt 0:00:46]} 37. b4 {[%emt 0:01:46]} Qa2 {[%emt 0:01:06]} 38. Qd2 {
[%emt 0:00:55]} Qc4+ {[%emt 0:01:21]} 39. Kf2 {[%emt 0:01:14]} Bh6 {[%emt 0:00:
00]} 40. Qc3 {[%emt 0:01:14]} Qxc3 {[%emt 0:01:03]} 41. Bxc3 {[%emt 0:30:26]}
Bg7 {[%emt 0:30:56]} 42. Ke3 {[%emt 0:02:12]} Kg8 {[%emt 0:00:12]} 43. Kd3 {
[%emt 0:01:20]} Kf7 {[%emt 0:00:10]} 44. f4 {[%emt 0:00:00]} Bf8 {[%emt 0:00:
00]} 45. Bd2 {[%emt 0:00:00]} Ke6 {[%emt 0:00:00]} 46. h4 {[%emt 0:00:00]} Kd5
{[%emt 0:00:00]} 47. Be1 {[%emt 0:00:00]} Bg7 {[%emt 0:00:00]} 48. Bc3 {
[%emt 0:00:00]} Bf6 {[%emt 0:00:00]} 49. Bb2 {[%emt 0:00:00]} Bd8 {[%emt 0:00:
00]} 50. Bc1 {[%emt 0:00:31]} a5 {[%emt 0:00:00]} 0-1

[Event "44th Chess Olympiad Women 2022"]
[Site "Chennai"]
[Date "2022.08.05"]
[Round "7.12"]
[White "Berke, Ana"]
[Black "Milliet, Sophie"]
[Result "*"]
[WhiteElo "2163"]
[BlackElo "2396"]
[Annotator "TA"]
[PlyCount "59"]
[EventDate "2022.??.??"]
[TimeControl "60"]

{[%evp 17,59,8,8,0,-1,-2,0,-15,-12,-25,0,0,0,-18,47,51,44,53,50,45,50,48,49,49,
53,54,52,37,72,86,79,79,90,0,45,47,52,31,44,0,42,0,39,0]} 1. e4 {[%emt 0:00:09]
} c5 {[%emt 0:00:05]} 2. Nf3 {[%emt 0:00:05]} e6 {[%emt 0:00:05]} 3. c4 {
[%emt 0:00:10]} Nc6 {[%emt 0:00:05]} 4. d4 {[%emt 0:00:15]} cxd4 {[%emt 0:00:
00]} 5. Nxd4 {[%emt 0:00:05]} Nf6 {[%emt 0:00:10]} 6. Nc3 {[%emt 0:00:07]} Bb4
{[%emt 0:00:07]} 7. Nxc6 {[%emt 0:00:19]} bxc6 {[%emt 0:00:03]} 8. Bd3 {
[%emt 0:00:11]} e5 {[%emt 0:00:07]} 9. O-O {[%emt 0:00:13]} O-O {[%emt 0:00:07]
} 10. Rb1 {[%emt 0:02:24] Recently 10.h3 got a lot of attention. B44: Sicilian:
Taimanov: 5 Nb5.} Bxc3 {[%emt 0:14:18]} 11. bxc3 {[%emt 0:00:09]} d6 {[%emt 0:
00:00][%cal Yd7d6,Yd6d5]} 12. Qa4 {[%emt 0:04:03] [#] The position is equal.}
Qc7 $146 {[%emt 0:12:01]} ({Predecessor:} 12... c5 13. Bg5 h6 14. Bh4 Be6 15.
Rfd1 h5 16. Be2 Rb8 17. Bxh5 Rxb1 18. Rxb1 Qa8 {1-0 (25) Stadler,P (1867)
-Mostowik,P (2114) LSS email 2017}) 13. Rd1 {[%emt 0:03:57][%cal Yc4c5]} Be6 {
[%emt 0:05:35]} 14. c5 {[%emt 0:04:48]} d5 {[%emt 0:06:12]} 15. Bg5 {[%emt 0:
07:49] Threatens to win with Bxf6.} Nd7 {[%emt 0:31:37]} (15... Nxe4 $11 16.
Bxe4 dxe4) 16. Be7 $1 $14 {[%emt 0:03:58] Black must now prevent Bd6.} Nb6 $1 {
[%emt 0:00:09]} 17. cxb6 {[%emt 0:10:17]} axb6 {[%emt 0:00:27]} 18. Qb4 {
[%emt 0:01:03]} c5 {[%emt 0:00:04] [#]} 19. Qxb6 {[%emt 0:01:27]} Qxe7 {
[%emt 0:02:37]} 20. exd5 {[%emt 0:06:11]} Bxd5 {[%emt 0:00:06] [#]} 21. Bxh7+ {
[%emt 0:01:25]} Kxh7 {[%emt 0:00:03]} 22. Rxd5 {[%emt 0:00:18]} Rfb8 {[%emt 0:
00:00]} 23. Qxb8 {[%emt 0:07:30] White is much more active.} Rxb8 {[%emt 0:00:
00]} 24. Rxb8 $16 {[%emt 0:00:05] Endgame KQ-KRR} e4 {[%emt 0:00:11]} 25. Rh5+
{[%emt 0:01:57][%cal Yd5h5,Yh5h3,Yh3g3]} Kg6 {[%emt 0:00:00]} 26. Rh3 {[%emt 0:
01:13]} Qa7 {[%emt 0:01:04][%csl Ya2,Yb8]} 27. Rg3+ {[%emt 0:01:52]} Kh7 {
[%emt 0:04:23]} 28. Rh3+ {[%emt 0:01:53]} Kg6 {[%emt 0:00:00]} 29. Rg3+ {
[%emt 0:00:07]} Kh7 {[%emt 0:00:04]} 30. Rh3+ {[%emt 0:06:08] Weighted Error
Value: White=0.16 (very precise) /Black=0.11 (very precise)} *

[Event "44th Chess Olympiad Women 2022"]
[Site "Chennai"]
[Date "2022.08.05"]
[Round "7.12"]
[White "Guichard, Pauline"]
[Black "Medic, Mirjana"]
[Result "1-0"]
[WhiteElo "2379"]
[BlackElo "2194"]
[Annotator "TA"]
[PlyCount "91"]
[EventDate "2022.??.??"]
[TimeControl "60"]

{[%evp 15,91,18,34,22,19,18,22,14,17,11,18,0,7,2,11,0,2,0,9,14,30,41,37,37,42,
35,81,77,79,77,68,72,86,73,91,91,90,83,91,77,113,114,115,113,378,366,366,353,
593,564,498,334,338,316,335,333,1143,1119,1721,836,726,152,145,19,20,31,5289,
5281,29970,29973,29972,29974,29974,29975,29973,29974,6183,4132]} 1. d4 {
[%emt 0:00:04]} d5 {[%emt 0:00:08]} 2. c4 {[%emt 0:00:06]} e6 {[%emt 0:00:05]}
3. Nc3 {[%emt 0:00:14]} Nf6 {[%emt 0:00:08]} 4. Nf3 {[%emt 0:00:06]} Be7 {
[%emt 0:00:13]} 5. Bf4 {[%emt 0:00:10]} O-O {[%emt 0:00:24]} 6. e3 {[%emt 0:00:
00]} b6 {[%emt 0:00:19]} 7. Be2 {[%emt 0:00:45]} Bb7 {[%emt 0:00:52]} 8. O-O {
[%emt 0:01:14]} c5 {[%emt 0:02:33]} 9. cxd5 {[%emt 0:03:42] D37: Queen's
Gambit Declined: 5 Bf4.} Nxd5 {[%emt 0:03:48]} 10. Nxd5 {[%emt 0:00:15]} exd5 {
[%emt 0:03:59]} 11. b3 {[%emt 0:01:22] The position is equal.} Nd7 {[%emt 0:00:
00][%cal Yb8d7,Yd7f6,Yf6e4]} 12. Rc1 {[%emt 0:00:45]} Rc8 {[%emt 0:00:00] [#]}
13. Qd3 $146 {[%emt 0:14:11]} ({Predecessor:} 13. Bd3 g6 14. h3 Bf6 15. Qe2 Re8
16. Ba6 Bxa6 17. Qxa6 Qe7 18. Rfd1 Qe6 19. Qxa7 {½-½ (96) Kuybokarov,T (2501)
-Wang,S (2370) New Delhi 2019}) 13... Nf6 {[%emt 0:04:21]} 14. Rfd1 {[%emt 0:
00:51]} Ne4 {[%emt 0:10:07]} 15. Nd2 {[%emt 0:02:19]} cxd4 {[%emt 0:07:48]
Threatens to win with ...Nc3.} 16. exd4 {[%emt 0:13:18]} Nxd2 {[%emt 0:09:39]}
17. Qxd2 {[%emt 0:02:37]} Qd7 {[%emt 0:09:43]} 18. h3 {[%emt 0:00:00]} Rxc1 {
[%emt 0:02:17]} 19. Rxc1 {[%emt 0:00:24] Hoping for Rc7.} Rc8 {[%emt 0:00:33]
Inhibits Rc7.} 20. Re1 {[%emt 0:00:41] And now Bg4 would win.} Re8 {[%emt 0:05:
07]} (20... Qd8 $14) 21. Bg4 $16 {[%emt 0:01:23]} f5 {[%emt 0:00:00]} 22. Bh5 {
[%emt 0:05:14]} g6 {[%emt 0:01:06]} 23. Bf3 {[%emt 0:00:05]} Bf6 {[%emt 0:02:
41]} 24. Be5 {[%emt 0:01:16]} Bg7 {[%emt 0:02:22]} 25. h4 {[%emt 0:07:38][%cal
Yh3h4,Yh4h5]} Re6 {[%emt 0:01:22]} 26. h5 {[%emt 0:07:24]} Qe7 {[%emt 0:03:33]}
27. Qf4 {[%emt 0:00:36] White is more active.} Bxe5 {[%emt 0:02:11]} 28. dxe5 {
[%emt 0:00:49]} (28. Rxe5 Rxe5 29. dxe5 (29. Qxe5 Qxe5 30. dxe5 Kf7 $11) 29...
Bc6 $14) 28... Qd8 {[%emt 0:00:45]} 29. Rd1 {[%emt 0:07:27][%cal Ye1d1,Yd1d5,
Yd5d7]} Qc7 $2 {[%emt 0:00:00]} (29... Re8 $16) 30. Bxd5 $18 {[%emt 0:08:38]}
Bxd5 {[%emt 0:00:00]} 31. Rxd5 {[%emt 0:00:03] Endgame KQR-KQR} Kg7 $2 {
[%emt 0:00:00]} (31... Qf7 32. hxg6 hxg6) 32. g3 {[%emt 0:04:19]} Qc6 {[%emt 0:
00:57]} 33. h6+ {[%emt 0:05:02]} Kf7 {[%emt 0:00:19]} 34. Qd4 {[%emt 0:00:59]
Rd7+ is the strong threat.} g5 {[%emt 0:01:35] [#]} 35. Rd7+ $1 {[%emt 0:05:31]
} Kg6 $2 {[%emt 0:03:32]} (35... Ke8 36. Rxh7 Qc1+ 37. Kh2 Qc6) 36. Rd6 {
[%emt 0:00:07]} Qc8 {[%emt 0:00:47]} 37. Kh2 {[%emt 0:01:40]} (37. Qd5 $142
Rxd6 38. Qxd6+ Kh5 39. e6) 37... Kh5 {[%emt 0:00:42]} 38. Qd1+ $2 {[%emt 0:03:
50]} (38. Qd5 $18 {and the rest is easy.} Rxd6 39. exd6) 38... g4 $16 {[%emt 0:
01:20] [#]} 39. Rxe6 {[%emt 0:01:49]} (39. Qd4 $1 $16) 39... Qxe6 {[%emt 0:00:
03] KQ-KQ} 40. Qd6 {[%emt 0:00:12]} Qxh6 {[%emt 0:01:48]} (40... Qc8 $14) 41.
e6 $18 {[%emt 0:31:52] Intending Qd7 and mate.} Qf6 {[%emt 0:30:31]} 42. Qd7 {
[%emt 0:00:00]} f4 {[%emt 0:00:00]} 43. Qxh7+ {[%emt 0:00:00]} Kg5 {[%emt 0:00:
00]} 44. Qh4+ {[%emt 0:00:00]} (44. e7 fxg3+ 45. fxg3 Qf2+ 46. Kh1 Qf3+ 47. Kh2
(47. Kg1 Qxg3+ 48. Kf1 Qf3+ 49. Ke1 Qe3+ 50. Kd1 Kf6 $11) 47... Qf2+ 48. Kh1
Qf3+ 49. Kh2 (49. Kg1 Qxg3+ 50. Kf1 Qf4+ 51. Ke2 Qe5+ 52. Kd3 Qd6+ 53. Kc2 Qc5+
54. Kd3 Qd6+ 55. Ke3 Qf4+ 56. Ke2 Qe5+ 57. Kd3 Qd6+ $11) 49... Qf2+ $11) 44...
Kf5 {[%emt 0:00:00]} 45. Qxf6+ {[%emt 0:00:00]} ({And not} 45. e7 fxg3+ 46.
fxg3 (46. Kxg3 Qe5+ 47. Kg2 Qe4+ 48. Kh2 Qe5+ 49. Kh1 Qe4+ 50. Kg1 Qe1+ 51. Kh2
Qe5+ 52. Kh1 Qe4+ 53. f3 Qxf3+ 54. Kg1 Qd1+ 55. Kh2 Qe2+ 56. Kg1 Qd1+ 57. Kh2
Qe2+ 58. Kg1 Qd1+ $11) 46... Qb2+ 47. Kh1 Qa1+ 48. Kh2 Qb2+ 49. Kh1 Qa1+ 50.
Kh2 Qb2+ $11) 45... Kxf6 {[%emt 0:00:00]} 46. gxf4 {[%emt 0:00:00] Weighted
Error Value: White=0.32/Black=0.49} 1-0

[Event "44th Chess Olympiad Women 2022"]
[Site "Chennai"]
[Date "2022.08.05"]
[Round "7.12"]
[White "Ivekovic, Tihana"]
[Black "Navrotescu, Andreea"]
[Result "1-0"]
[WhiteElo "2082"]
[BlackElo "2373"]
[Annotator "ChessBase"]
[PlyCount "67"]
[EventDate "2022.??.??"]
[TimeControl "60"]

1. d4 {[%emt 0:00:02]} d5 {[%emt 0:00:05]} 2. c4 {[%emt 0:00:06]} c6 {[%emt 0:
00:00]} 3. Nf3 {[%emt 0:00:04]} Nf6 {[%emt 0:00:06]} 4. g3 {[%emt 0:00:04]} Bf5
{[%emt 0:00:45]} 5. Nc3 {[%emt 0:01:02]} dxc4 {[%emt 0:07:46]} 6. Bg2 {[%emt 0:
00:00]} e6 {[%emt 0:07:19]} 7. Ne5 {[%emt 0:01:17]} Nbd7 {[%emt 0:04:04]} 8.
Nxc4 {[%emt 0:01:08]} h6 {[%emt 0:04:53]} 9. O-O {[%emt 0:01:52]} Be7 {[%emt 0:
00:00]} 10. e4 {[%emt 0:02:14]} Bg4 {[%emt 0:00:29]} 11. Qb3 {[%emt 0:01:22]}
Nb6 {[%emt 0:04:31]} 12. h3 {[%emt 0:08:59]} Bh5 {[%emt 0:01:09]} 13. Be3 {
[%emt 0:05:17]} Nxc4 {[%emt 0:01:11]} 14. Qxc4 {[%emt 0:00:05]} O-O {[%emt 0:
00:00]} 15. g4 {[%emt 0:01:52]} Bg6 {[%emt 0:10:17]} 16. f4 {[%emt 0:09:43]} b5
{[%emt 0:00:00]} 17. Qxc6 {[%emt 0:01:06]} b4 {[%emt 0:00:00]} 18. f5 {[%emt 0:
00:00]} Rc8 {[%emt 0:00:40]} 19. Qa6 {[%emt 0:03:13]} exf5 {[%emt 0:01:45]} 20.
gxf5 {[%emt 0:01:03]} Bxf5 {[%emt 0:05:34]} 21. Rxf5 {[%emt 0:03:13]} bxc3 {
[%emt 0:00:10]} 22. Qe2 {[%emt 0:04:04]} Nh7 {[%emt 0:05:01]} 23. d5 {[%emt 0:
00:00]} Bg5 {[%emt 0:15:48]} 24. bxc3 {[%emt 0:05:18]} Rxc3 {[%emt 0:01:48]}
25. Bd4 {[%emt 0:00:16]} Rc7 {[%emt 0:10:41]} 26. e5 {[%emt 0:07:24]} Re8 {
[%emt 0:03:44]} 27. Qb5 {[%emt 0:10:52]} Nf8 {[%emt 0:01:38]} 28. Rd1 {[%emt 0:
00:00]} Qc8 {[%emt 0:05:54]} 29. Rdf1 {[%emt 0:07:57]} Rb7 {[%emt 0:05:08]} 30.
Qd3 {[%emt 0:01:24]} g6 {[%emt 0:01:29]} 31. R5f2 {[%emt 0:00:18]} Nd7 {
[%emt 0:00:53]} 32. Rxf7 {[%emt 0:01:26]} Nxe5 {[%emt 0:00:05]} 33. Bxe5 {
[%emt 0:00:05]} Be3+ {[%emt 0:00:54]} 34. Kh1 {[%emt 0:00:15]} 1-0